fUST/lending_fUST_20250630
["ID","MTS","AMOUNT","RATE_DAILY","PERIOD"]
[368646793,1751263846496,-151.0,0.000203,3]
[368646794,1751263846505,-4269.54934606,0.00020314,3]
[368646795,1751263846514,-151.0,0.00020314,2]
[368646796,1751263846524,-177.5677436,0.00020329,2]
[368646797,1751263846533,-177.5677436,0.00020329,2]
[368646798,1751263846542,-177.5677436,0.00020329,2]
[368646799,1751263846552,-575.4102369,0.00020329,2]
[368646800,1751263846561,-159.319357,0.00020329,2]
[368646801,1751263846571,-357.5831023,0.00020329,2]
[368646802,1751263846580,-159.319357,0.00020329,2]
[368646803,1751263846589,-575.4102369,0.00020329,2]
[368646804,1751263846598,-575.4102369,0.00020329,2]
[368646805,1751263846607,-159.319357,0.00020329,2]
[368646806,1751263846616,-575.4102369,0.00020329,2]
[368646807,1751263846625,-159.319357,0.00020329,2]
[368646808,1751263846634,-507.9082879,0.00020329,2]
[368646809,1751263846644,-1150.8204738,0.00020329,2]
[368646810,1751263846654,-159.319357,0.00020329,2]
[368646811,1751263846663,-318.638714,0.00020329,2]
[368646812,1751263846673,-1150.8204738,0.00020329,2]
[368646813,1751263846687,-575.4102369,0.00020329,2]
[368646814,1751263846696,-1150.7225375,0.00020329,2]
[368646815,1751263846706,-151.0,0.00020329,2]
[368646816,1751263846715,-315.701127,0.00020329,2]
[368646817,1751263846727,-315.701127,0.00020329,2]
[368646818,1751263846736,-151.0,0.00020329,2]
[368646819,1751263846745,-306.0,0.00020356,2]
[368646820,1751263846755,-1295.19,0.00020397,2]
[368646821,1751263846765,-460.0,0.00020398,2]
[368646822,1751263846774,-460.0,0.00020398,2]
[368646824,1751263846784,-151.0,0.00020398,2]
[368646825,1751263846793,-151.0,0.00020398,2]
[368646826,1751263846801,-460.0,0.00020398,2]
[368646827,1751263846811,-685.58,0.00020398,2]
[368646828,1751263846820,-151.0,0.00020398,2]
[368646829,1751263846830,-462.27,0.00020398,2]
[368646830,1751263846839,-248.307818,0.00020398,2]
[368646831,1751263846848,-248.307818,0.00020398,2]
[368646832,1751263846857,-678.03,0.00020398,2]
[368646833,1751263846867,-1457.11,0.00020399,2]
[368646834,1751263846876,-1701.39,0.00020399,2]
[368646835,1751263846885,-1792.93,0.00020399,2]
[368646836,1751263846895,-460.0,0.00020399,2]
[368646837,1751263846904,-1670.83,0.00020399,2]
[368646838,1751263846913,-1425.6,0.00020399,2]
[368646839,1751263846923,-460.0,0.00020399,2]
[368646840,1751263846932,-1921.78,0.00020399,2]
[368646841,1751263846941,-972.22,0.00020399,2]
[368646842,1751263846951,-192.12283,0.00020399,2]
[368646843,1751263846960,-989.67,0.00020399,2]
[368646844,1751263846970,-151.0,0.00020399,2]
[368646845,1751263846979,-151.0,0.00020399,2]
[368646846,1751263846988,-161.4348477,0.000204,2]
[368646847,1751263846997,-460.0,0.000204,2]
[368646848,1751263847006,-460.0,0.000204,2]
[368646849,1751263847015,-460.0,0.000204,2]
[368646850,1751263847025,-460.0,0.000204,2]
[368646851,1751263847034,-3269.72,0.000204,2]
[368646852,1751263847043,-597.78,0.000204,2]
[368646853,1751263847053,-267.144722,0.00020401,2]
[368646854,1751263847062,-151.0,0.00020401,2]
[368646855,1751263847071,-381.98177074,0.00020401,2]
[368646856,1751263847080,-151.0,0.00020401,2]
[368646857,1751263847089,-460.0,0.00020401,2]
[368646858,1751263847098,-460.0,0.00020401,2]
[368646859,1751263847108,-745.91,0.00020401,2]
[368646860,1751263847118,-460.0,0.00020401,2]
[368646861,1751263847127,-767.26,0.00020401,2]
[368646862,1751263847136,-460.0,0.00020401,2]
[368646863,1751263847145,-948.26,0.00020401,2]
[368646864,1751263847155,-1177.05,0.00020401,2]
[368646865,1751263847164,-692.97,0.00020401,2]
[368646866,1751263847173,-1518.55,0.00020401,2]
[368646867,1751263847183,-460.0,0.00020401,2]
[368646868,1751263847192,-1202.71,0.00020401,2]
[368646869,1751263847202,-151.0,0.00020402,2]
[368646870,1751263847211,-151.0,0.00020402,2]
[368646871,1751263847220,-151.0,0.00020402,2]
[368646872,1751263847229,-151.0,0.00020402,2]
[368646873,1751263847238,-151.0,0.00020402,2]
[368646874,1751263847248,-151.0,0.00020402,2]
[368646875,1751263847257,-151.0,0.00020402,2]
[368646876,1751263847266,-3439.52,0.00020402,2]
[368646877,1751263847275,-1011.92,0.00020402,2]
[368646878,1751263847284,-540.29,0.00020403,2]
[368646879,1751263847294,-2674.8239456,0.00020408,2]
[368646880,1751263847303,-151.0,0.00020435,4]
[368646881,1751263847313,-150.0,0.00020436,2]
[368646882,1751263847322,-4269.54934606,0.00020452,3]
[368646883,1751263847331,-1133.034,0.00020456,2]
[368646884,1751263847341,-215.0738,0.0002046,2]
[368646885,1751263847350,-3000.0,0.000205,2]
[368646886,1751263847359,-151.0,0.000205,4]
[368646887,1751263847368,-151.0,0.000205,4]
[368646888,1751263847377,-1000.0,0.000205,2]
[368646889,1751263847386,-3000.0,0.0002051,2]
[368646890,1751263847395,-3000.0,0.0002052,2]
[368646891,1751263847405,-3000.0,0.0002053,2]
[368646892,1751263847415,-3000.0,0.0002054,2]
[368646893,1751263847424,-500.0,0.00020547,14]
[368646894,1751263847434,-159.495389,0.00020548,2]
[368646895,1751263847444,-151.0,0.00020548,2]
[368646896,1751263847453,-151.0,0.00020548,2]
[368646897,1751263847462,-151.0,0.00020548,2]
[368646898,1751263847471,-3000.0,0.0002055,2]
[368646899,1751263847480,-153.12975,0.0002055,2]
[368646900,1751263847492,-3000.0,0.0002056,2]
[368646901,1751263847502,-3000.0,0.0002057,2]
[368646902,1751263847511,-151.0,0.0002057,2]
[368646903,1751263847520,-3000.0,0.0002058,2]
[368646904,1751263847529,-4269.54934606,0.0002059,3]
[368646905,1751263847539,-3000.0,0.0002059,2]
[368646906,1751263847548,-12569.13231816,0.0002059,3]
[368646907,1751263847558,-847.41730813,0.0002059,3]
[368646908,1751263847567,-213.84631524,0.0002059,3]
[368646909,1751263847577,-160.0,0.0002059,3]
[368646910,1751263847585,-151.0,0.0002059,2]
[368646911,1751263847595,-151.0,0.0002059,2]
[368646912,1751263847605,-151.0,0.0002059,2]
[368646913,1751263847615,-151.0,0.0002059,2]
[368646914,1751263847624,-248.307818,0.0002059,2]
[368646915,1751263847634,-248.307818,0.0002059,2]
[368646916,1751263847644,-151.0,0.0002059,2]
[368646917,1751263847654,-3000.0,0.000206,2]
[368646918,1751263847663,-5341.36,0.000206,2]
[368646919,1751263847673,-3000.0,0.0002061,2]
[368646920,1751263847684,-556.134714,0.00020616,4]
[368646921,1751263847693,-168.0,0.00020617,2]
[368646922,1751263847703,-3000.0,0.0002062,2]
[368646923,1751263847712,-315.701127,0.00020622,2]
[368646924,1751263847721,-315.701127,0.00020622,2]
[368646925,1751263847731,-151.0,0.00020622,2]
[368646926,1751263847740,-376.16777152,0.00020629,2]
[368646927,1751263847749,-500.0,0.00020629,2]
[368646928,1751263847759,-500.0,0.00020629,2]
[368646929,1751263847768,-500.0,0.00020629,2]
[368646930,1751263847777,-500.0,0.00020629,2]
[368646931,1751263847787,-300.88223154,0.00020629,2]
[368646932,1751263847796,-500.0,0.00020629,2]
[368646933,1751263847805,-500.0,0.00020629,2]
[368646934,1751263847816,-500.0,0.00020629,2]
[368646935,1751263847825,-500.0,0.00020629,2]
[368646936,1751263847834,-500.0,0.00020629,2]
[368646937,1751263847844,-500.0,0.00020629,2]
[368646938,1751263847853,-500.0,0.00020629,2]
[368646939,1751263847863,-500.0,0.00020629,2]
[368646940,1751263847872,-500.0,0.00020629,2]
[368646941,1751263847881,-500.0,0.00020629,2]
[368646942,1751263847891,-500.0,0.00020629,2]
[368646943,1751263847900,-461.25671759,0.00020629,2]
[368646944,1751263847909,-3000.0,0.0002063,2]
[368646945,1751263847919,-151.0,0.0002063,4]
[368646946,1751263847928,-2886.12354276,0.00020633,2]
[368646947,1751263847937,-3000.0,0.0002064,2]
[368646948,1751263847947,-3000.0,0.0002065,2]
[368646949,1751263847956,-3000.0,0.0002066,2]
[368646950,1751263847965,-2674.8239457,0.00020662,2]
[368646951,1751263847975,-1755.93567373,0.00020669,2]
[368646952,1751263848179,-244.06432627,0.00020669,2]
[368646953,1751263848189,-1083.09430746,0.0002067,2]
[368646954,1751263848200,-1916.90569254,0.0002067,2]
[368646955,1751263848209,-1295.19,0.00020671,2]
[368646956,1751263848219,-151.0,0.00020672,2]
[368646957,1751263848229,-151.0,0.00020672,2]
[368646958,1751263848239,-151.0,0.00020672,2]
[368646959,1751263848249,-151.0,0.00020672,2]
[368646960,1751263848259,-151.0,0.00020672,2]
[368646961,1751263848268,-151.0,0.00020672,2]
[368646962,1751263848278,-460.0,0.00020672,2]
[368646963,1751263848288,-460.0,0.00020672,2]
[368646964,1751263848297,-685.58,0.00020672,2]
[368646965,1751263848307,-462.27,0.00020672,2]
[368646966,1751263848317,-678.03,0.00020672,2]
[368646967,1751263848326,-1457.11,0.00020673,2]
[368646968,1751263848336,-1701.39,0.00020673,2]
[368646969,1751263848345,-1792.93,0.00020673,2]
[368646970,1751263848355,-460.0,0.00020673,2]
[368646971,1751263848365,-1670.83,0.00020673,2]
[368646972,1751263848374,-1425.6,0.00020673,2]
[368646973,1751263848384,-460.0,0.00020673,2]
[368646974,1751263848393,-1921.78,0.00020673,2]
[368646975,1751263848403,-972.22,0.00020673,2]
[368646976,1751263848414,-989.67,0.00020673,2]
[368646977,1751263848424,-151.0,0.00020674,2]
[368646978,1751263848434,-151.0,0.00020674,2]
[368646979,1751263848444,-460.0,0.00020674,2]
[368646980,1751263848454,-460.0,0.00020674,2]
[368646981,1751263848463,-460.0,0.00020674,2]
[368646982,1751263848473,-460.0,0.00020674,2]
[368646983,1751263848482,-3269.72,0.00020674,2]
[368646984,1751263848492,-597.78,0.00020674,2]
[368646985,1751263848501,-460.0,0.00020675,2]
[368646986,1751263848511,-460.0,0.00020675,2]
[368646987,1751263848520,-745.91,0.00020675,2]
[368646988,1751263848530,-460.0,0.00020675,2]
[368646989,1751263848540,-767.26,0.00020675,2]
[368646990,1751263848549,-460.0,0.00020675,2]
[368646991,1751263848559,-948.26,0.00020675,2]
[368646992,1751263848569,-1177.05,0.00020675,2]
[368646993,1751263848578,-692.97,0.00020675,2]
[368646994,1751263848588,-1518.55,0.00020675,2]
[368646995,1751263848597,-460.0,0.00020675,2]
[368646996,1751263848607,-1202.71,0.00020675,2]
[368646997,1751263848616,-151.0,0.00020676,2]
[368646998,1751263848626,-3439.52,0.00020676,2]
[368646999,1751263848635,-1011.92,0.00020676,2]
[368647000,1751263848645,-540.29,0.00020677,2]
[368647001,1751263848654,-473.52491212,0.0002068,2]
[368647002,1751263848785,-500.0,0.00018206,2]
[368647003,1751263848795,-410.37003324,0.00018206,2]
[368647004,1751263848804,-460.0,0.00018207,2]
[368647005,1751263848815,-460.0,0.00018481,2]
[368647006,1751263848824,-460.0,0.00018755,2]
[368647007,1751263848834,-460.0,0.00019029,2]
[368647008,1751263848844,-366.3004382,0.00019123,2]
[368647009,1751263848853,-460.0,0.00019303,2]
[368647010,1751263848863,-151.0,0.00019329,2]
[368647011,1751263848873,-177.5677436,0.00019507,2]
[368647012,1751263848882,-485.29346496,0.00019507,2]
[368647013,1751263848894,-90.11677194,0.00019507,2]
[368647014,1751263848903,-159.319357,0.00019507,2]
[368647015,1751263848913,-460.0,0.00019577,2]
[368647016,1751263848923,-151.0,0.00019854,2]
[368647017,1751263848932,-2131.11387106,0.0002068,2]
[368647018,1751263848944,-395.36121682,0.0002068,2]
[368647019,1751263848954,-151.0,0.0002068,2]
[368647020,1751263848963,-12500.0,0.00020698,2]
[368647021,1751263848973,-500.0,0.00020704,2]
[368647022,1751263848982,-500.0,0.00020704,2]
[368647023,1751263848992,-153.30826967,0.00020704,2]
[368647024,1751263849001,-500.0,0.00020704,2]
[368647025,1751263849010,-500.43541712,0.00020704,2]
[368647026,1751263849021,-500.0,0.00020704,2]
[368647027,1751263849030,-360.00832558,0.00020704,2]
[368647028,1751263849039,-500.0,0.00020704,2]
[368647029,1751263849049,-500.0,0.00020704,2]
[368647030,1751263849059,-500.0,0.00020704,2]
[368647031,1751263849068,-500.0,0.00020704,2]
[368647032,1751263849077,-500.0,0.00020704,2]
[368647033,1751263849087,-500.0,0.00020704,2]
[368647034,1751263849096,-500.0,0.00020704,2]
[368647035,1751263849106,-500.0,0.00020704,2]
[368647036,1751263849115,-500.0,0.00020704,2]
[368647037,1751263849125,-500.0,0.00020704,2]
[368647038,1751263849134,-500.18829966,0.00020704,2]
[368647039,1751263849144,-161.03755053,0.00020704,2]
[368647040,1751263849153,-167.44996719,0.00020704,2]
[368647041,1751263849163,-500.0,0.00020704,2]
[368647042,1751263849173,-500.40553689,0.00020704,2]
[368647043,1751263849183,-500.0,0.00020704,2]
[368647044,1751263849192,-500.0,0.00020704,2]
[368647045,1751263849202,-500.0,0.00020704,2]
[368647046,1751263849212,-500.0,0.00020704,2]
[368647047,1751263849222,-500.0,0.00020704,2]
[368647048,1751263849232,-600.0,0.00020704,2]
[368647049,1751263849242,-500.0,0.00020704,2]
[368647050,1751263849251,-441.89255118,0.00020704,2]
[368647051,1751263849261,-543.43743581,0.00020704,2]
[368647052,1751263849271,-423.2949172,0.00020704,2]
[368647053,1751263849280,-500.0,0.00020704,2]
[368647054,1751263849291,-172.30950918,0.00020704,2]
[368647055,1751263849300,-500.0,0.00020704,2]
[368647056,1751263849310,-500.41713589,0.00020704,2]
[368647057,1751263849319,-500.0,0.00020704,2]
[368647058,1751263849329,-500.0,0.00020704,2]
[368647059,1751263849338,-500.0,0.00020704,2]
[368647060,1751263849348,-500.0,0.00020704,2]
[368647061,1751263849359,-500.0,0.00020704,2]
[368647062,1751263849368,-12500.0,0.00020707,2]
[368647063,1751263849378,-354.7340967,0.00020712,2]
[368647064,1751263849388,-159.319357,0.00020712,2]
[368647065,1751263849399,-1148.1691885,0.00020712,2]
[368647066,1751263849409,-12500.0,0.00020715,2]
[368647067,1751263849418,-151.0,0.00020721,2]
[368647068,1751263849428,-151.0,0.00020721,2]
[368647069,1751263849437,-151.0,0.00020721,2]
[368647070,1751263849447,-245.0,0.00020721,2]
[368647071,1751263849456,-248.307818,0.00020721,2]
[368647072,1751263849466,-248.307818,0.00020721,2]
[368647073,1751263849476,-151.0,0.00020721,2]
[368647074,1751263849485,-12500.0,0.00020724,2]
[368647075,1751263849495,-4269.54934606,0.00020728,3]
[368647076,1751263849505,-12500.0,0.00020733,2]
[368647077,1751263849514,-315.701127,0.00020733,2]
[368647078,1751263849524,-315.701127,0.00020733,2]
[368647079,1751263849533,-151.0,0.00020733,2]
[368647080,1751263849543,-5000.0,0.00020735,2]
[368647081,1751263849552,-185.85903224,0.00020736,2]
[368647082,1751263849723,-460.0,0.00019851,2]
[368647083,1751263849735,-460.0,0.00020125,2]
[368647084,1751263849744,-313.82896087,0.00020399,2]
[368647085,1751263849752,-166.17103913,0.00020736,2]
[368647086,1751263849765,-147.96992863,0.00020736,2]
[368647087,1751263849775,-500.0,0.00020736,2]
[368647088,1751263849785,-159.44590569,0.00020736,2]
[368647089,1751263849794,-349.53992227,0.00020736,2]
[368647090,1751263849803,-12500.0,0.00020742,2]
[368647091,1751263849813,-12500.0,0.00020751,2]
[368647092,1751263849823,-151.0,0.00020759,2]
[368647093,1751263849833,-8053.02951453,0.00020759,2]
[368647109,1751264108996,189.5353303,0.00017345,2]
[368647110,1751264109611,-159.71187015,0.00018107,2]
[368647111,1751264112202,-174.81982182,0.00018204,2]
[368647112,1751264114060,-125.18017818,0.00018204,2]
[368647113,1751264114084,-58.14656399,0.00018204,2]
[368647114,1751264116698,-241.85343601,0.00018204,2]
[368647115,1751264116723,-34.81982182,0.00018204,2]
[368647116,1751264318174,-161.90600269,0.00018106,2]
[368647118,1751264637313,159.495389,0.00013699,2]
[368647133,1751264831023,19130.5415162,0.00017206,2]
[368647134,1751264831710,-161.90600264,0.00018105,2]
[368647167,1751265031986,-300.0,0.00018202,2]
[368647169,1751265031996,-208.0,0.00018202,2]
[368647170,1751265032007,-248.0,0.00018202,2]
[368647171,1751265032016,-1137.07697778,0.00018202,2]
[368647172,1751265032028,-62.92302222,0.00018202,2]
[368647173,1751265032037,-448.00123108,0.00018203,2]
[368647174,1751265032047,-460.0,0.00018203,2]
[368647175,1751265032056,-460.0,0.00018203,2]
[368647176,1751265032066,-460.0,0.00018203,2]
[368647177,1751265032076,-460.0,0.00018203,2]
[368647178,1751265032089,-1144.88,0.00018203,2]
[368647179,1751265032098,-460.0,0.00018203,2]
[368647180,1751265032108,-499.57974935,0.00018203,2]
[368647181,1751265032117,-354.41599734,0.00018203,2]
[368647182,1751265032130,-105.58400266,0.00018203,2]
[368647183,1751265032140,-460.0,0.00018204,2]
[368647184,1751265032150,-361.34733992,0.00018204,2]
[368647185,1751265032161,-460.0,0.00018204,2]
[368647186,1751265032171,-460.0,0.00018204,2]
[368647188,1751265032181,-460.0,0.00018204,2]
[368647189,1751265032191,-460.0,0.00018204,2]
[368647190,1751265032200,-460.0,0.00018204,2]
[368647191,1751265032210,-460.0,0.00018204,2]
[368647192,1751265032219,-460.0,0.00018204,2]
[368647194,1751265032229,-460.0,0.00018204,2]
[368647195,1751265032239,-460.0,0.00018204,2]
[368647196,1751265032248,-156.68801382,0.00018204,2]
[368647197,1751265032257,-460.0,0.00018204,2]
[368647198,1751265032266,-461.878899,0.00018204,2]
[368647199,1751265032276,-500.0,0.00018204,2]
[368647200,1751265032285,-460.0,0.00018204,2]
[368647201,1751265032295,-460.0,0.00018204,2]
[368647202,1751265032304,-460.0,0.00018204,2]
[368647203,1751265032314,-460.0,0.00018204,2]
[368647204,1751265032323,-500.0,0.00018204,2]
[368647205,1751265032332,-500.0,0.00018204,2]
[368647206,1751265032342,-500.0,0.00018204,2]
[368647207,1751265032352,-500.0,0.00018204,2]
[368647208,1751265032362,-500.0,0.00018204,2]
[368647209,1751265032372,-158.46810837,0.00018204,2]
[368647210,1751265032384,-500.0,0.00018204,2]
[368647211,1751265032395,-500.0,0.00018204,2]
[368647212,1751265032404,-500.0,0.00018204,2]
[368647213,1751265032414,-441.95330878,0.00018204,2]
[368647214,1751265032427,-58.04669122,0.00018204,2]
[368647215,1751265032437,-500.0,0.00018204,2]
[368647216,1751265032446,-435.07095322,0.00018204,2]
[368647217,1751265032456,-500.0,0.00018204,2]
[368647218,1751265032465,-500.0,0.00018204,2]
[368647219,1751265032475,-500.0,0.00018204,2]
[368647220,1751265032484,-500.0,0.00018204,2]
[368647221,1751265032494,-228.63195499,0.00018204,2]
[368647222,1751265032504,-462.81214464,0.00018204,2]
[368647223,1751265032514,-460.0,0.00018204,2]
[368647224,1751265032523,-460.0,0.00018204,2]
[368647225,1751265032533,-460.0,0.00018204,2]
[368647226,1751265032543,-513.61348178,0.00018204,2]
[368647227,1751265032553,-500.0,0.00018204,2]
[368647228,1751265032563,-204.29,0.00018204,2]
[368647229,1751265032573,-460.0,0.00018204,2]
[368647230,1751265032583,-460.0,0.00018204,2]
[368647231,1751265032593,-460.0,0.00018204,2]
[368647232,1751265032603,-500.0,0.00018204,2]
[368647233,1751265032613,-1290.05,0.00018204,2]
[368647234,1751265032623,-460.0,0.00018204,2]
[368647235,1751265032632,-1678.67,0.00018204,2]
[368647236,1751265032642,-460.0,0.00018204,2]
[368647237,1751265032652,-460.0,0.00018204,2]
[368647238,1751265032662,-460.0,0.00018204,2]
[368647239,1751265032671,-185.44766805,0.00018204,2]
[368647240,1751265032681,-460.0,0.00018204,2]
[368647241,1751265032691,-460.0,0.00018204,2]
[368647242,1751265032700,-1748.45,0.00018204,2]
[368647243,1751265032710,-460.0,0.00018204,2]
[368647244,1751265032720,-591.19,0.00018204,2]
[368647245,1751265032729,-460.0,0.00018204,2]
[368647246,1751265032739,-460.0,0.00018204,2]
[368647247,1751265032748,-460.62370859,0.00018204,2]
[368647248,1751265032758,-460.0,0.00018204,2]
[368647249,1751265032767,-460.0,0.00018204,2]
[368647250,1751265032781,-460.0,0.00018204,2]
[368647251,1751265032801,-460.0,0.00018204,2]
[368647252,1751265032821,-1301.76,0.00018204,2]
[368647253,1751265032842,-460.0,0.00018204,2]
[368647254,1751265032861,-9700.63,0.00018204,2]
[368647255,1751265032879,-1535.04,0.00018204,2]
[368647256,1751265032889,-460.0,0.00018204,2]
[368647257,1751265032899,-1766.01,0.00018204,2]
[368647258,1751265032908,-460.0,0.00018204,2]
[368647259,1751265032918,-460.0,0.00018204,2]
[368647260,1751265032927,-460.0,0.00018204,2]
[368647261,1751265032937,-737.6,0.00018204,2]
[368647262,1751265032947,-832.4,0.00018204,2]
[368647263,1751265032958,-510.9274481,0.00018204,2]
[368647264,1751265032967,-460.0,0.00018204,2]
[368647265,1751265032977,-460.0,0.00018204,2]
[368647266,1751265032987,-460.0,0.00018204,2]
[368647267,1751265032996,-460.0,0.00018204,2]
[368647268,1751265033006,-460.0,0.00018204,2]
[368647269,1751265033016,-460.0,0.00018204,2]
[368647270,1751265033025,-621.1,0.00018204,2]
[368647271,1751265033035,-460.0,0.00018204,2]
[368647272,1751265033045,-460.0,0.00018204,2]
[368647273,1751265033055,-460.0,0.00018204,2]
[368647274,1751265033064,-460.0,0.00018204,2]
[368647275,1751265033074,-460.0,0.00018204,2]
[368647276,1751265033085,-460.0,0.00018204,2]
[368647277,1751265033095,-460.0,0.00018204,2]
[368647278,1751265033105,-234.55,0.00018204,2]
[368647279,1751265033115,-708.6,0.00018204,2]
[368647280,1751265033126,-460.0,0.00018204,2]
[368647281,1751265033136,-460.0,0.00018204,2]
[368647282,1751265033146,-460.0,0.00018204,2]
[368647283,1751265033156,-863.74,0.00018204,2]
[368647284,1751265033169,-460.0,0.00018205,2]
[368647285,1751265033179,-463.06494032,0.00018205,2]
[368647286,1751265033188,-464.73219916,0.00018205,2]
[368647287,1751265033198,-460.0,0.00018205,2]
[368647288,1751265033210,-460.0,0.00018205,2]
[368647289,1751265033219,-448.0,0.00018205,2]
[368647290,1751265033229,-464.17264325,0.00018205,2]
[368647291,1751265033239,-429.34754869,0.00018205,2]
[368647292,1751265033249,-460.0,0.00018205,2]
[368647293,1751265033259,-460.0,0.00018205,2]
[368647294,1751265033269,-460.0,0.00018205,2]
[368647295,1751265033279,-460.0,0.00018205,2]
[368647296,1751265033289,-404.11422006,0.00018205,2]
[368647297,1751265033299,-460.0,0.00018205,2]
[368647298,1751265033308,-470.29231926,0.00018205,2]
[368647299,1751265033318,-460.0,0.00018205,2]
[368647300,1751265033327,-460.0,0.00018205,2]
[368647301,1751265033336,-405.5364169,0.00018205,2]
[368647302,1751265033346,-460.0,0.00018205,2]
[368647303,1751265033356,-472.62057747,0.00018205,2]
[368647304,1751265033366,-481.45359119,0.00018205,2]
[368647305,1751265033375,-460.0,0.00018205,2]
[368647306,1751265033385,-515.60976116,0.00018205,2]
[368647307,1751265033394,-515.17189896,0.00018205,2]
[368647308,1751265033404,-460.0,0.00018205,2]
[368647309,1751265033413,-460.0,0.00018205,2]
[368647310,1751265033423,-460.0,0.00018205,2]
[368647311,1751265033432,-464.4007227,0.00018205,2]
[368647312,1751265033441,-460.0,0.00018205,2]
[368647313,1751265033451,-460.0,0.00018205,2]
[368647314,1751265033460,-460.09748724,0.00018205,2]
[368647315,1751265033608,-161.94574817,0.00018205,2]
[368647316,1751265033618,-467.60270902,0.00018205,2]
[368647317,1751265033627,-460.0,0.00018205,2]
[368647318,1751265033636,-460.0,0.00018205,2]
[368647319,1751265033647,-475.50123312,0.00018205,2]
[368647320,1751265033656,-460.0,0.00018205,2]
[368647321,1751265033666,-460.0,0.00018205,2]
[368647322,1751265033675,-468.21890409,0.00018205,2]
[368647323,1751265033684,-460.0,0.00018205,2]
[368647324,1751265033693,-463.30438671,0.00018205,2]
[368647325,1751265033703,-460.0,0.00018205,2]
[368647326,1751265033712,-329.13846385,0.00018205,2]
[368647327,1751265033721,-460.0,0.00018205,2]
[368647328,1751265033730,-460.0,0.00018205,2]
[368647329,1751265033740,-460.0,0.00018205,2]
[368647330,1751265033749,-1382.22,0.00018205,2]
[368647331,1751265033759,-464.44589036,0.00018205,2]
[368647332,1751265033769,-349.40397743,0.00018205,2]
[368647333,1751265033779,-460.0,0.00018205,2]
[368647334,1751265033789,-460.0,0.00018205,2]
[368647335,1751265033798,-460.0,0.00018205,2]
[368647336,1751265033808,-214.23202028,0.00018205,2]
[368647337,1751265033818,-441.24320566,0.00018205,2]
[368647338,1751265033827,-587.58719918,0.00018205,2]
[368647339,1751265033836,-460.0,0.00018205,2]
[368647340,1751265033845,-460.0,0.00018205,2]
[368647341,1751265033855,-460.0,0.00018205,2]
[368647342,1751265033864,-460.0,0.00018205,2]
[368647343,1751265033874,-2777.71,0.00018205,2]
[368647344,1751265033883,-692.2,0.00018205,2]
[368647345,1751265033892,-460.0,0.00018205,2]
[368647346,1751265033902,-1004.36,0.00018205,2]
[368647347,1751265033912,-442.01088159,0.00018206,2]
[368647348,1751265033922,-460.0,0.00018206,2]
[368647349,1751265033931,-464.01835825,0.00018206,2]
[368647350,1751265033941,-460.0,0.00018206,2]
[368647351,1751265033951,-460.0,0.00018206,2]
[368647352,1751265033961,-446.07440955,0.00018206,2]
[368647353,1751265033970,-434.65261667,0.00018206,2]
[368647354,1751265033980,-460.0,0.00018206,2]
[368647355,1751265033989,-173.57706665,0.00018206,2]
[368647356,1751265033999,-444.05707808,0.00018206,2]
[368647357,1751265034009,-450.17483727,0.00018206,2]
[368647358,1751265034019,-460.0,0.00018206,2]